bitfinex/quotes_BTCUSD_20250406
["timestamp","ask_amount","ask_price","bid_price","bid_amount"]
[1743910695212,0.88811669,83282.0,83281.0,0.0001642]
[1743910695413,0.60811669,83282.0,83281.0,0.0001642]
[1743910695620,0.60911669,83282.0,83281.0,0.0001642]
[1743910700491,0.56816349,83282.0,83281.0,0.0001642]
[1743910710974,0.60911669,83282.0,83281.0,0.0001642]
[1743910712438,0.52659454,83282.0,83281.0,0.0001642]
[1743910712609,0.52659454,83282.0,83281.0,0.0490642]
[1743910712991,0.52659454,83282.0,83281.0,0.05657752]
[1743910714011,0.52659454,83282.0,83281.0,0.0490642]
[1743910714207,0.52659454,83282.0,83281.0,0.17196717]
[1743910714853,0.52659454,83282.0,83281.0,0.17947969]
[1743910716623,0.52659454,83282.0,83281.0,0.17196717]
[1743910718606,0.52659454,83282.0,83281.0,0.21946717]
[1743910718771,0.52659454,83282.0,83281.0,0.22821505]
[1743910719629,0.80659454,83282.0,83281.0,0.22821505]
[1743910719836,0.52659454,83282.0,83281.0,0.22821505]
[1743910720031,0.52659454,83282.0,83281.0,0.21946717]
[1743910720239,0.52659454,83282.0,83281.0,0.23572729]
[1743910724774,0.52559454,83282.0,83281.0,0.23572729]
[1743910730818,0.51358754,83282.0,83281.0,0.23572729]
[1743910730975,0.52559454,83282.0,83281.0,0.24697471]
[1743910731404,0.51358754,83282.0,83281.0,0.24697471]
[1743910731661,0.52559454,83282.0,83281.0,0.24697471]
[1743910739640,0.52559454,83282.0,83281.0,0.24797471]
[1743910743497,0.3523354,83282.0,83281.0,0.24797471]
[1743910749807,0.3523354,83282.0,83281.0,0.19907471]
[1743910750015,0.3523354,83282.0,83281.0,0.15157471]
[1743910750186,0.52532383,83282.0,83281.0,0.01992386]
[1743910750635,0.43485789,83282.0,83281.0,0.01992386]
[1743910750908,0.43485789,83282.0,83281.0,0.0011642]
[1743910751982,0.39390469,83282.0,83281.0,0.0011642]
[1743910757375,0.66390469,83282.0,83281.0,0.0011642]
[1743910757645,0.39390469,83282.0,83281.0,0.0011642]
[1743910763878,0.3523354,83282.0,83281.0,0.0011642]
[1743910770549,0.44280134,83282.0,83281.0,0.0011642]
[1743910770908,0.57092383,83282.0,83281.0,0.0011642]
[1743910771793,0.57092383,83282.0,83281.0,0.0001642]
[1743910772152,0.61862383,83282.0,83281.0,2e-07]
[1743910772296,0.62062383,83282.0,83281.0,2e-07]
[1743910776034,0.75265929,83282.0,83281.0,2e-07]
[1743910777143,0.75065929,83282.0,83281.0,2e-07]
[1743910777587,0.75265929,83282.0,83281.0,2e-07]
[1743910777798,0.78804798,83282.0,83281.0,2e-07]
[1743910778226,0.79204798,83282.0,83281.0,2e-07]
[1743910779015,0.79304798,83282.0,83281.0,2e-07]
[1743910779212,0.75565929,83282.0,83281.0,2e-07]
[1743910779360,0.79303685,83282.0,83281.0,2e-07]
[1743910780321,0.75565929,83282.0,83281.0,2e-07]
[1743910782382,0.75565929,83282.0,83248.0,0.0112418]
[1743910782383,0.012009,83268.0,83251.0,0.004]
[1743910782653,0.012009,83268.0,83227.0,0.000164]
[1743910782654,0.012015,83228.0,83227.0,0.000164]
[1743910782855,0.56252394,83228.0,83227.0,0.000164]
[1743910783073,0.56252394,83228.0,83227.0,0.092264]
[1743910783277,0.04229694,83228.0,83227.0,0.23818137]
[1743910783491,0.012014,83233.0,83228.0,0.10664085]
[1743910783492,0.012015,83229.0,83228.0,0.10664085]
[1743910783694,0.012015,83229.0,83228.0,0.22954382]
[1743910783897,0.168208,83230.0,83229.0,0.10664085]
[1743910784100,0.168208,83230.0,83229.0,0.23706087]
[1743910784256,0.16866372,83230.0,83229.0,0.23706087]
[1743910784476,0.18067772,83230.0,83229.0,0.23706087]
[1743910785779,0.18067772,83230.0,83229.0,0.24106087]
[1743910786094,0.18167772,83230.0,83229.0,0.24606087]
[1743910791178,0.18167772,83230.0,83229.0,0.25493829]
[1743910792205,0.18167772,83230.0,83229.0,0.38893829]
[1743910793675,0.18167772,83230.0,83229.0,0.25493829]
[1743910793917,0.18167772,83230.0,83229.0,0.38889829]
[1743910794457,0.18167772,83230.0,83229.0,0.38906259]
[1743910794987,0.00145572,83230.0,83229.0,0.38906259]
[1743910795392,0.00145572,83230.0,83229.0,0.40107759]
[1743910796403,0.00145572,83230.0,83229.0,0.41229452]
[1743910801431,0.00145572,83230.0,83229.0,0.41729452]
[1743910802208,0.00045572,83230.0,83229.0,0.43729452]
[1743910802565,0.0003286,83240.0,83239.0,0.12255385]
[1743910802714,0.0003286,83240.0,83239.0,0.24559352]
[1743910802915,0.0003286,83240.0,83239.0,0.26626802]
[1743910803155,0.0003286,83240.0,83239.0,0.27378507]
[1743910803519,0.0003286,83240.0,83239.0,0.35452428]
[1743910804005,0.0003286,83240.0,83239.0,0.27978507]
[1743910804817,0.05919634,83252.0,83251.0,0.180177]
[1743910804971,0.05919634,83252.0,83251.0,0.54948082]
[1743910805175,0.05919634,83252.0,83251.0,0.56653935]
[1743910806183,0.05919634,83252.0,83251.0,0.69572421]
[1743910806386,0.05919634,83252.0,83251.0,0.70072421]
[1743910807437,0.05952494,83252.0,83251.0,0.70072421]
[1743910807636,0.0003286,83252.0,83251.0,0.70072421]
[1743910807858,0.2303286,83252.0,83251.0,0.70072421]
[1743910808057,0.0003286,83252.0,83251.0,0.70072421]
[1743910808291,0.0003286,83252.0,83251.0,0.58871628]
[1743910809099,0.0003286,83252.0,83251.0,0.45479628]
[1743910809278,0.0003286,83252.0,83251.0,0.58871628]
[1743910812787,0.12391124,83262.0,83255.0,0.168157]
[1743910813008,0.180158,83260.0,83256.0,0.13744382]
[1743910813153,0.180158,83260.0,83256.0,0.1646053]
[1743910813364,0.180158,83260.0,83258.0,0.01454085]
[1743910813573,0.180158,83260.0,83259.0,0.14496087]
[1743910813769,0.180158,83260.0,83259.0,0.15436204]
[1743910814844,0.180158,83260.0,83259.0,0.15736204]
[1743910815391,0.180158,83260.0,83259.0,0.19430559]
[1743910816168,0.01201,83260.0,83259.0,0.19430559]
[1743910816390,0.01201,83260.0,83259.0,0.19730559]
[1743910817374,0.01201,83261.0,83259.0,0.16036204]
[1743910817611,0.180152,83263.0,83259.0,0.16036204]
[1743910817861,0.18014,83268.0,83261.0,0.168144]
[1743910818106,0.18014,83268.0,83263.0,0.16814]
[1743910818371,0.18014,83268.0,83264.0,0.13229317]
[1743910818609,0.168135,83266.0,83265.0,0.1338]
[1743910818830,0.180144,83266.0,83265.0,0.25670297]
[1743910818995,0.180144,83266.0,83265.0,0.26609223]
[1743910819175,0.180144,83266.0,83265.0,0.27360928]
[1743910819527,0.180144,83266.0,83265.0,0.27374598]
[1743910819742,0.180144,83266.0,83265.0,0.33237607]
[1743910821205,0.180144,83266.0,83265.0,0.27474598]
[1743910821438,0.180144,83266.0,83265.0,0.27674598]
[1743910824460,0.180144,83266.0,83265.0,0.27658598]
[1743910824929,0.180144,83266.0,83265.0,0.28780291]
[1743910825679,0.18014,83268.0,83265.0,0.28780291]
[1743910825946,0.34,83270.0,83266.0,0.18699639]
[1743910826188,0.34,83270.0,83267.0,0.00751705]
[1743910826411,0.34,83270.0,83268.0,0.12290297]
[1743910826584,0.34,83270.0,83269.0,0.00751705]
[1743910826781,0.520136,83270.0,83269.0,0.13042002]
[1743910827023,0.520136,83270.0,83269.0,0.15098963]
[1743910827431,0.520136,83270.0,83269.0,0.28466963]
[1743910827607,0.520136,83270.0,83269.0,0.15098963]
[1743910827826,0.520136,83270.0,83269.0,0.28566963]
[1743910831155,0.520136,83270.0,83269.0,0.29098469]
[1743910831354,0.168124,83272.0,83269.0,0.29098469]
[1743910831510,0.07118466,83281.0,83274.0,0.01454085]
[1743910831874,0.05917766,83281.0,83280.0,0.012007]
[1743910832073,0.05917766,83281.0,83280.0,0.13490997]
[1743910832274,0.05917766,83281.0,83280.0,0.21944514]
[1743910832502,0.05917766,83281.0,83280.0,0.23066207]
[1743910833678,0.05917766,83281.0,83280.0,0.24520292]
[1743910833905,0.05917766,83281.0,83280.0,0.37575306]
[1743910834106,0.05917766,83281.0,83280.0,0.37675306]
[1743910836069,0.05917766,83281.0,83280.0,0.37575306]
[1743910836271,0.05917766,83281.0,83280.0,0.37775306]
[1743910838421,0.05917766,83281.0,83280.0,0.37975306]
[1743910839683,0.05917766,83281.0,83280.0,0.30735403]
[1743910840669,0.0003284,83282.0,83281.0,0.19465285]
[1743910840867,0.0003284,83282.0,83281.0,0.31755582]
[1743910841072,0.0003284,83282.0,83281.0,0.33294601]
[1743910841680,0.0003284,83282.0,83281.0,0.34416294]
[1743910841987,0.0003284,83282.0,83281.0,0.45025114]
[1743910842166,0.0003284,83282.0,83281.0,0.45425114]
[1743910843706,0.0003284,83282.0,83281.0,0.46176254]
[1743910844722,0.0003284,83282.0,83281.0,0.35567434]
[1743910846921,0.2403284,83282.0,83281.0,0.35567434]
[1743910847124,0.0003284,83282.0,83281.0,0.35463354]
[1743910848396,0.0003284,83282.0,83281.0,0.48783354]
[1743910850312,0.0003284,83282.0,83281.0,0.48779354]
[1743910850546,0.0123354,83282.0,83281.0,0.28943921]
[1743910852130,0.0123354,83282.0,83281.0,0.15627921]
[1743910852338,0.0123354,83282.0,83281.0,0.2787513]
[1743910852598,0.0123354,83282.0,83281.0,0.28939921]
[1743910854466,0.0123354,83282.0,83281.0,0.15627921]
[1743910854669,0.0123354,83282.0,83281.0,0.28931921]
[1743910856943,0.0123354,83282.0,83281.0,0.31826755]
[1743910857150,0.0123354,83282.0,83281.0,0.28931921]
[1743910861223,0.0123354,83282.0,83281.0,0.28948341]
[1743910866622,0.3523354,83282.0,83281.0,0.16650044]
[1743910867090,0.3523354,83282.0,83281.0,0.15585253]
[1743910867534,0.3523354,83282.0,83281.0,0.15585347]
[1743910867733,0.3523354,83282.0,83281.0,0.02289347]
[1743910867892,0.3523354,83282.0,83281.0,0.15601347]
[1743910869026,0.3523354,83282.0,83281.0,0.27891644]
[1743910869414,0.3523354,83282.0,83281.0,0.2896561]
[1743910869619,0.0003284,83282.0,83281.0,0.35852733]
[1743910872251,0.0003284,83282.0,83281.0,0.2896561]
[1743910873118,0.0003284,83282.0,83281.0,0.1565361]
[1743910873476,0.0003284,83282.0,83281.0,0.2896161]
[1743910873675,0.0003284,83282.0,83281.0,0.1565361]
[1743910873819,0.0123354,83282.0,83281.0,0.2896161]
[1743910893512,0.0123354,83282.0,83281.0,0.1565361]
[1743910893719,0.0123354,83282.0,83281.0,0.2894161]
[1743910894460,0.2723354,83282.0,83281.0,0.2894161]
[1743910894664,0.0123354,83282.0,83281.0,0.2894161]
[1743910905569,0.0123354,83282.0,83281.0,0.30395695]
[1743910905914,0.0003284,83282.0,83281.0,0.57466895]
[1743910906586,0.0003284,83282.0,83281.0,0.61210619]
[1743910906790,0.0003284,83282.0,83281.0,0.61010619]
[1743910907111,0.0003284,83282.0,83281.0,0.61086619]
[1743910907320,0.0003284,83282.0,83281.0,0.61286619]
[1743910907473,0.0003284,83282.0,83281.0,0.74757302]
[1743910908357,0.0003284,83282.0,83281.0,0.71901733]
[1743910909061,0.0003284,83282.0,83281.0,0.71601733]
[1743910909231,0.0003284,83282.0,83281.0,0.71401733]
[1743910909445,0.2703284,83282.0,83281.0,0.71801733]
[1743910909661,0.0003284,83282.0,83281.0,0.72201733]
[1743910912296,0.0003284,83282.0,83281.0,0.74401733]
[1743910912521,0.0003284,83282.0,83281.0,0.78138279]
[1743910912698,4e-07,83282.0,83281.0,1.13238279]
[1743910912924,0.004,83299.0,83298.0,0.31521685]
[1743910913064,0.004,83299.0,83298.0,0.6551055]
[1743910913265,0.004,83299.0,83298.0,0.66567655]
[1743910913519,0.004,83299.0,83298.0,0.68440582]
[1743910914256,0.004,83299.0,83298.0,0.68454252]
[1743910915386,0.004,83299.0,83298.0,0.68854252]
[1743910916039,0.004,83299.0,83298.0,0.68754252]
[1743910916241,0.004,83299.0,83298.0,0.68958252]
[1743910916442,0.004,83299.0,83298.0,0.69358252]
[1743910916593,0.004,83299.0,83298.0,0.68958252]
[1743910916790,0.004,83299.0,83298.0,0.68458252]
[1743910916992,0.004,83299.0,83298.0,0.69558252]
[1743910920577,0.004,83299.0,83298.0,0.56290252]
[1743910920784,0.004,83299.0,83298.0,0.69550252]
[1743910921296,0.004,83299.0,83298.0,0.56290252]
[1743910921423,0.004,83299.0,83298.0,0.69554252]
[1743910924317,0.0041642,83299.0,83298.0,0.69554252]
[1743910925674,0.0041642,83299.0,83298.0,0.69058252]
[1743910932507,0.0041642,83299.0,83298.0,0.55790252]
[1743910932823,0.0041642,83299.0,83298.0,0.69058252]
[1743910933230,0.168034,83317.0,83311.0,0.168045]
[1743910933391,0.168034,83317.0,83312.0,0.26587448]
[1743910934123,0.16804,83314.0,83312.0,0.26587448]
[1743910934337,0.012002,83317.0,83312.0,0.26587448]
[1743910934739,0.168034,83316.0,83312.0,0.26587448]
[1743910934905,0.012002,83317.0,83312.0,0.26587448]
[1743910935723,0.180032,83318.0,83313.0,0.168041]
[1743910935923,0.180032,83318.0,83314.0,0.13319244]
[1743910937978,0.012002,83319.0,83315.0,0.00751234]
[1743910938190,0.012002,83319.0,83316.0,0.14440733]
[1743910938385,0.012002,83319.0,83317.0,0.00751234]
[1743910938711,0.012002,83319.0,83318.0,0.13318836]
[1743910938987,0.168022,83323.0,83318.0,0.2732607]
[1743910939131,0.180023,83323.0,83318.0,0.2732607]
[1743910939375,0.180023,83323.0,83319.0,0.01872927]
[1743910939617,0.0003282,83324.0,83321.0,0.012001]
[1743910939794,0.0003282,83324.0,83322.0,0.14067413]
[1743910940304,0.0003282,83324.0,83323.0,0.00751234]
[1743910940512,0.0003282,83324.0,83323.0,0.13041531]
[1743910940700,0.0123292,83324.0,83323.0,0.27323311]
[1743910940921,0.0123292,83324.0,83323.0,0.28445004]
[1743910941515,0.01278548,83324.0,83323.0,0.28445004]
[1743910948825,0.24278548,83324.0,83323.0,0.28445004]
[1743910949024,0.01278548,83324.0,83323.0,0.27419224]
[1743910949223,0.01278548,83324.0,83323.0,0.28445004]
[1743910950049,0.01278548,83324.0,83323.0,0.27419224]
[1743910952426,0.01278548,83324.0,83323.0,0.27519224]
[1743910952884,0.01278548,83324.0,83323.0,0.27619224]
[1743910953085,0.01278548,83324.0,83323.0,0.27615224]
[1743910953747,0.01278548,83324.0,83323.0,0.30376746]
[1743910953949,0.01278548,83324.0,83323.0,0.27615224]
[1743910954141,0.01278548,83324.0,83323.0,0.28637736]
[1743910954352,0.01278548,83324.0,83323.0,0.15385736]
[1743910954492,0.01278548,83324.0,83323.0,0.28637736]
[1743910954696,0.01278548,83324.0,83323.0,0.27615224]
[1743910955014,0.01278548,83324.0,83323.0,0.28637736]
[1743910957142,0.01278548,83324.0,83323.0,0.30478998]
[1743910957589,0.01278548,83324.0,83323.0,0.31500992]
[1743910957774,0.01278548,83324.0,83323.0,0.28637218]
[1743910958556,0.01278548,83324.0,83323.0,0.27615224]
[1743910963496,0.35278548,83324.0,83323.0,0.27615224]
[1743910963945,0.35278548,83324.0,83323.0,0.02072927]
[1743910964410,0.35278548,83324.0,83323.0,0.00951234]
[1743910966379,0.47405797,83324.0,83323.0,0.00951234]
[1743910966816,0.47405797,83324.0,83323.0,0.002]
[1743910968093,0.47405797,83324.0,83319.0,0.0003282]
[1743910968094,0.520027,83320.0,83319.0,0.0003282]
[1743910968234,0.612927,83320.0,83319.0,0.0003282]
[1743910969260,0.612927,83320.0,83319.0,0.0023282]
[1743910970420,0.612927,83320.0,83319.0,0.0043282]
[1743910975295,0.569427,83320.0,83319.0,0.0043282]
[1743910986402,0.520027,83320.0,83319.0,0.0043282]
[1743910993923,0.520027,83320.0,83319.0,0.01183734]
[1743910997580,0.62733076,83320.0,83319.0,0.01183734]
[1743910998513,0.520027,83320.0,83319.0,0.01183734]
[1743910999477,0.520027,83320.0,83319.0,0.0043282]
[1743911002150,0.520027,83320.0,83319.0,0.01183732]
[1743911002314,0.520027,83320.0,83319.0,0.06073732]
[1743911002512,0.180027,83320.0,83319.0,0.18364029]
[1743911002759,0.180027,83320.0,83319.0,0.27546133]
[1743911002981,0.180027,83320.0,83319.0,0.2438413]
[1743911003373,0.520027,83320.0,83319.0,0.25509314]
[1743911004441,0.520027,83320.0,83319.0,0.38765314]
[1743911004849,0.520027,83320.0,83319.0,0.25509314]
[1743911005057,0.520027,83320.0,83319.0,0.38765314]
[1743911007940,0.770027,83320.0,83319.0,0.38765314]
[1743911008145,0.520027,83320.0,83319.0,0.38765314]
[1743911010735,0.34,83320.0,83319.0,0.38765314]
[1743911010952,0.3401641,83323.0,83320.0,0.0482]
[1743911011153,0.3401641,83323.0,83322.0,0.0482]
[1743911011352,0.3401641,83323.0,83322.0,0.17861209]
[1743911011554,0.3401641,83323.0,83322.0,0.20023333]
[1743911012315,0.0001641,83323.0,83322.0,0.20023333]
[1743911012999,0.0001641,83323.0,83322.0,0.20123333]
[1743911013381,0.0001641,83323.0,83322.0,0.25507362]
[1743911013567,0.0001641,83323.0,83322.0,0.30417362]
[1743911013754,0.0001641,83323.0,83322.0,0.31871447]
[1743911014796,0.004,83329.0,83327.0,0.0491]
[1743911014991,0.004,83329.0,83327.0,0.17200297]
[1743911015220,0.004,83329.0,83327.0,0.26655306]
[1743911015416,0.004,83329.0,83327.0,0.27855306]
[1743911016839,0.004,83329.0,83327.0,0.32715306]
[1743911017913,0.004,83329.0,83327.0,0.32815306]
[1743911018091,0.004,83329.0,83327.0,0.32915306]
[1743911022715,0.004,83329.0,83327.0,0.25172823]
[1743911023611,0.172009,83329.0,83327.0,0.25172823]
[1743911023907,0.172009,83329.0,83327.0,0.24047639]
[1743911026468,0.172009,83329.0,83327.0,0.25172823]
[1743911027216,0.172009,83329.0,83327.0,0.24047639]
[1743911028252,0.172009,83329.0,83327.0,0.25172823]
[1743911029335,0.24784621,83328.0,83327.0,0.25172823]
[1743911030569,0.24784621,83328.0,83327.0,0.33564823]
[1743911030570,0.25984621,83328.0,83327.0,0.33564823]
[1743911032600,0.59984621,83328.0,83327.0,0.33564823]
[1743911041233,0.59984621,83328.0,83327.0,0.28654823]
[1743911042441,0.71544864,83328.0,83327.0,0.15402823]
[1743911042666,0.59984621,83328.0,83327.0,0.28654823]
[1743911042806,0.59984621,83328.0,83327.0,0.27618393]
[1743911043204,0.59984621,83328.0,83327.0,0.28637943]
[1743911051493,0.59984621,83328.0,83327.0,0.36136386]
[1743911051697,0.59984621,83328.0,83327.0,0.33267943]
[1743911052102,0.38071778,83328.0,83327.0,0.33267943]
[1743911052369,0.3521641,83328.0,83327.0,0.33267943]
[1743911060642,0.6221641,83328.0,83327.0,0.33267943]
[1743911060959,0.3521641,83328.0,83327.0,0.33267943]
[1743911063329,0.3521641,83328.0,83327.0,0.03095646]
[1743911063729,0.3521641,83328.0,83327.0,0.00950912]
[1743911063946,0.3956641,83328.0,83327.0,0.00950912]
[1743911064279,0.43248339,83328.0,83327.0,0.002]
[1743911065882,0.47343659,83328.0,83327.0,0.002]
[1743911066042,0.58103806,83328.0,83327.0,0.002]
[1743911067968,0.58103806,83328.0,83327.0,0.0023282]
[1743911070974,0.47343659,83328.0,83327.0,0.0023282]
[1743911081724,0.42993659,83328.0,83327.0,0.0023282]
[1743911094107,0.3521641,83328.0,83327.0,0.0476282]
[1743911097678,0.3521641,83328.0,83327.0,0.05513696]
[1743911105664,0.44299832,83328.0,83327.0,0.05513696]
[1743911106404,0.3521641,83328.0,83327.0,0.05513696]
[1743911106605,0.3521641,83328.0,83327.0,0.0476282]
[1743911109167,0.3521641,83328.0,83327.0,0.05513694]
[1743911115364,0.3521641,83328.0,83327.0,0.0476282]
[1743911118944,0.3521641,83328.0,83327.0,0.0933282]
[1743911119119,0.0121641,83328.0,83327.0,0.0933282]
[1743911119326,0.3521641,83328.0,83327.0,0.0933282]
[1743911121575,0.3521641,83328.0,83327.0,0.0476282]
[1743911128435,0.3521641,83328.0,83327.0,0.17053117]
[1743911128633,0.3521641,83328.0,83327.0,0.22857686]
[1743911128843,0.0001641,83328.0,83327.0,0.22857686]
[1743911129050,0.0121641,83328.0,83327.0,0.22857686]
[1743911131275,0.0121641,83328.0,83327.0,0.36105686]
[1743911131736,0.3521641,83328.0,83327.0,0.10567389]
[1743911131914,0.3521641,83328.0,83327.0,0.05797389]
[1743911132109,0.3521641,83328.0,83327.0,0.0476282]
[1743911132285,0.3521641,83328.0,83327.0,0.01263972]
[1743911136971,0.3521641,83328.0,83327.0,0.0023282]
[1743911137173,0.3521641,83328.0,83327.0,0.01264818]
[1743911143734,0.3521641,83328.0,83327.0,0.0023282]
[1743911143938,0.3521641,83328.0,83327.0,0.01264343]
[1743911144142,0.3521641,83328.0,83327.0,0.0023282]
[1743911144661,0.3521641,83328.0,83327.0,0.01264343]
[1743911144972,0.3521641,83328.0,83327.0,0.0521282]
[1743911145107,0.3521641,83328.0,83327.0,0.10844343]
[1743911147238,0.6221641,83328.0,83327.0,0.10844343]
[1743911147441,0.3521641,83328.0,83327.0,0.10844343]
[1743911153759,0.3521641,83328.0,83327.0,0.24092343]
[1743911153964,0.3521641,83328.0,83327.0,0.2306082]
[1743911154117,0.3521641,83328.0,83327.0,0.24090962]
[1743911154754,0.3521641,83328.0,83327.0,0.10842962]
[1743911154956,0.44179922,83328.0,83327.0,0.01262962]
[1743911155162,0.3521641,83328.0,83327.0,0.0023282]
[1743911155595,0.3521641,83328.0,83327.0,0.01262962]
[1743911155779,0.3521641,83328.0,83327.0,0.0023282]
[1743911155997,0.3521641,83328.0,83327.0,0.01262673]
[1743911156179,0.3521641,83328.0,83327.0,0.0023282]
[1743911156376,0.3521641,83328.0,83327.0,0.0126264]
[1743911156581,0.3521641,83328.0,83327.0,0.0023282]
[1743911157201,0.3521641,83328.0,83327.0,0.0126264]
[1743911162952,0.0121641,83328.0,83327.0,0.0588264]
[1743911163156,0.3521641,83328.0,83327.0,0.0588264]
[1743911163685,0.0121641,83328.0,83327.0,0.2478065]
[1743911164297,0.0121641,83328.0,83327.0,0.22862937]
[1743911170481,0.14555696,83330.0,83327.0,0.22862937]
[1743911170667,0.012,83329.0,83328.0,0.12290297]
[1743911170853,0.012,83329.0,83328.0,0.13321991]
[1743911171175,0.18001,83329.0,83328.0,0.26569991]
[1743911171918,0.18001,83329.0,83328.0,0.26669991]
[1743911172335,0.012,83330.0,83328.0,0.30285921]
[1743911172599,0.0001641,83331.0,83330.0,0.06]
[1743911172747,0.0001641,83331.0,83330.0,0.17090297]
[1743911172947,0.0001641,83331.0,83330.0,0.1811597]
[1743911173184,0.0001641,83331.0,83330.0,0.25829734]
[1743911174408,0.0001641,83331.0,83330.0,0.1811597]
[1743911175458,0.0001641,83331.0,83330.0,0.1821597]
[1743911175660,0.0001641,83331.0,83330.0,0.2302597]
[1743911175972,0.0001641,83331.0,83330.0,0.25680055]
[1743911176609,0.0001641,83331.0,83330.0,0.26430705]
[1743911176812,0.0001641,83331.0,83330.0,0.37568973]
[1743911177006,0.0001641,83331.0,83330.0,0.36818323]
[1743911177650,0.0001641,83331.0,83330.0,0.35692347]
[1743911177859,0.0001641,83331.0,83330.0,0.37568985]
[1743911178280,0.0001641,83331.0,83330.0,0.37468985]
[1743911178432,0.0001641,83331.0,83330.0,0.37768985]
[1743911178621,0.0001641,83331.0,83330.0,0.37668985]
[1743911179018,0.0001641,83331.0,83330.0,0.37968985]
[1743911180407,0.0001641,83331.0,83330.0,0.4220456]
[1743911181720,0.0001641,83331.0,83330.0,0.41453892]
[1743911182324,0.0001641,83331.0,83330.0,0.40327922]
[1743911182879,0.0001641,83331.0,83330.0,0.42204281]
[1743911187707,0.0001641,83331.0,83330.0,0.41453693]
[1743911187911,0.0001641,83331.0,83330.0,0.51547551]
[1743911188371,0.0001641,83331.0,83330.0,0.5042178]
[1743911188671,0.0001641,83331.0,83330.0,0.5229817]
[1743911189674,0.0001641,83331.0,83330.0,0.5169817]
[1743911189977,0.0001641,83331.0,83330.0,0.5199817]
[1743911190702,0.0001641,83331.0,83330.0,0.5229817]
[1743911193828,0.0001641,83331.0,83330.0,0.51172365]
[1743911193999,0.0001641,83331.0,83330.0,0.5042178]
[1743911194206,0.0001641,83331.0,83330.0,0.504546]
[1743911194630,0.0001641,83331.0,83330.0,0.52331003]
[1743911199892,0.0001641,83331.0,83330.0,0.51580415]
[1743911200306,0.0001641,83331.0,83330.0,0.504546]
[1743911200699,0.0001641,83331.0,83330.0,0.5233102]
[1743911204860,0.0001641,83331.0,83330.0,0.28993162]
[1743911205028,0.0001641,83331.0,83330.0,0.42237162]
[1743911205209,0.0001641,83331.0,83330.0,0.22079295]
[1743911205394,0.0001641,83331.0,83330.0,0.35323295]
[1743911205806,0.0001641,83331.0,83330.0,0.34572697]
[1743911206371,0.0121641,83331.0,83330.0,0.2719279]
[1743911206580,0.0121641,83331.0,83330.0,0.1394879]
[1743911206718,0.0121641,83331.0,83330.0,0.29069445]
[1743911208277,0.0121641,83331.0,83330.0,0.15825445]
[1743911212061,0.0121641,83331.0,83330.0,0.14699508]
[1743911221739,0.06741345,83331.0,83330.0,0.14699508]
[1743911222035,0.0121641,83331.0,83330.0,0.14699508]
[1743911222231,0.3521641,83331.0,83330.0,0.02409211]
[1743911222610,0.3521641,83331.0,83330.0,0.0063282]
[1743911223281,0.3521641,83331.0,83330.0,0.0033282]
[1743911224267,0.4433641,83331.0,83330.0,0.0033282]
[1743911224486,0.54173345,83331.0,83330.0,0.0003282]
[1743911225295,0.4433641,83331.0,83330.0,0.0003282]
[1743911225928,0.180017,83325.0,83324.0,8.747e-05]
[1743911226418,0.180021,83323.0,83322.0,0.13176681]
[1743911226746,0.180021,83323.0,83322.0,0.14021328]
[1743911226962,0.180021,83323.0,83322.0,0.13931592]
[1743911229021,0.180021,83323.0,83322.0,0.14131592]
[1743911229226,0.180021,83323.0,83322.0,0.14331592]
[1743911231002,0.180021,83323.0,83322.0,0.15082446]
[1743911232451,0.180021,83323.0,83322.0,0.01995501]
[1743911232714,0.19204963,83323.0,83322.0,0.01150854]
[1743911232937,0.19204963,83323.0,83322.0,0.01995501]
[1743911234481,0.19204963,83323.0,83322.0,0.02028321]
[1743911237992,0.19204963,83323.0,83322.0,0.01277467]
[1743911238415,0.1919701,83323.0,83322.0,0.01277467]
[1743911238945,0.1919701,83323.0,83322.0,0.03152431]
[1743911239781,0.17994147,83323.0,83322.0,0.17086053]
[1743911239988,0.17994147,83323.0,83322.0,0.15442728]
[1743911243879,0.17994147,83323.0,83322.0,0.28690728]
[1743911248020,0.18010557,83323.0,83322.0,0.28690728]
[1743911250279,0.18010557,83323.0,83322.0,0.15442728]
[1743911250783,0.18010557,83323.0,83322.0,0.03152431]
[1743911250934,0.18010557,83323.0,83322.0,0.02307784]
[1743911255265,0.18010557,83323.0,83322.0,0.19438081]
[1743911255490,0.0001641,83323.0,83322.0,0.24318081]
[1743911255694,0.0121651,83323.0,83322.0,0.25170122]
[1743911255921,0.1801851,83323.0,83322.0,0.25170122]
[1743911283462,0.1801851,83323.0,83322.0,0.20290122]
[1743911283807,0.1801851,83323.0,83322.0,0.15450122]
[1743911285841,0.168018,83324.0,83322.0,0.15450122]
[1743911286045,0.180019,83324.0,83323.0,0.12290297]
[1743911286475,0.180019,83324.0,83323.0,0.15021293]
[1743911287899,0.180019,83324.0,83323.0,0.15221293]
[1743911288705,0.180019,83324.0,83323.0,0.15421293]
[1743911296223,0.180019,83324.0,83323.0,0.18294386]
[1743911297294,0.180019,83324.0,83323.0,0.15421293]
[1743911297897,0.470019,83324.0,83323.0,0.15421293]
[1743911298056,0.180019,83324.0,83323.0,0.15421293]
[1743911298698,0.1801831,83324.0,83323.0,0.15421293]
[1743911307244,0.0001641,83324.0,83323.0,0.20381293]
[1743911307448,0.0001641,83324.0,83323.0,0.31294571]
[1743911308583,0.0001641,83324.0,83323.0,0.31094571]
[1743911309434,0.0001641,83324.0,83323.0,0.31194571]
[1743911309629,0.0001641,83324.0,83323.0,0.31594571]
[1743911309825,0.0001641,83324.0,83323.0,0.31294571]
[1743911310188,0.0001641,83324.0,83323.0,0.31694571]
[1743911325188,0.2801641,83324.0,83323.0,0.31694571]
[1743911325486,0.0001641,83324.0,83323.0,0.31694571]
[1743911326468,0.0001641,83324.0,83323.0,0.31727391]
[1743911327255,0.0001641,83324.0,83323.0,0.28358298]
[1743911328848,0.0001641,83324.0,83323.0,0.27958298]
[1743911329047,0.0001641,83324.0,83323.0,0.27558298]
[1743911329213,0.0001641,83324.0,83323.0,0.27958298]
[1743911329423,0.0001641,83324.0,83323.0,0.28458298]
[1743911346279,0.0001641,83324.0,83323.0,0.30636407]
[1743911350796,0.2401641,83324.0,83323.0,0.30636407]
[1743911351029,0.0001641,83324.0,83323.0,0.30636407]
[1743911351487,0.0001641,83324.0,83323.0,0.28458298]
[1743911363924,0.2701641,83324.0,83323.0,0.28458298]
[1743911364113,0.0001641,83324.0,83323.0,0.28458298]
[1743911365769,0.0001641,83324.0,83323.0,0.30394213]
[1743911366565,0.0001641,83324.0,83323.0,0.29194113]
[1743911376166,0.0001641,83324.0,83323.0,0.15954113]
[1743911376329,0.0001641,83324.0,83323.0,0.64648198]
[1743911376530,0.0001641,83324.0,83323.0,0.84981043]
[1743911376731,0.0001641,83324.0,83323.0,0.89221304]
[1743911377048,0.0001641,83324.0,83323.0,0.90405887]
[1743911377229,0.0001641,83324.0,83323.0,0.89905887]